[Event "ESCC-50 2022"]
[Site "Lublin"]
[Date "2022.07.05"]
[Round "1.6"]
[White "Lasinskas, Povilas"]
[Black "Puroila, Sippo"]
[Result "1-0"]
[ECO "A56"]
[WhiteElo "2096"]
[BlackElo "1803"]
[Annotator "TA"]
[PlyCount "57"]
[EventDate "2022.07.05"]
[EventType "swiss"]
[EventCountry "POL"]
[SourceTitle "playchess.com"]
[Source "ChessBase"]
[SourceQuality "1"]
[TimeControl "40/5400+30:1800+30"]

{[%evp 9,57,58,55,54,79,49,91,65,72,54,98,98,145,143,229,232,226,232,256,256,237,202,199,188,218,212,303,288,328,316,321,254,255,262,344,253,252,261,253,254,344,272,421,426,567,530,559,531,502,408]} 1. d4 {[%emt 0:00:06]} Nf6 {[%emt 0:00:23]} 2. c4 {[%emt 0:00:10]} c5 {[%emt 0:00:18]} 3. d5 {[%emt 0:00:05]} e5 {[%emt 0:00:21]} 4. Nc3 {[%emt 0:00:24]} d6 {[%emt 0:00:20]} 5. g3 {[%emt 0:00:56]} Be7 {[%emt 0:00:28]} 6. Bg2 {[%emt 0:00:09] A56: Czech Benoni.} Nbd7 {[%emt 0:00:25]} 7. Nf3 {[%emt 0:00:30][%cal Bg1f3,Bf3g5,Bg5e6][%mdl 32] is the legacy move (7.e4).} Nf8 {[%emt 0:00:18]} 8. Qc2 {[%emt 0:00:58] White is better.} Ng6 {[%emt 0:00:16]} 9. h4 {[%emt 0:01:33] [#]} h5 $146 {[%emt 0:00:10]} ({Predecessor:} 9... h6 10. Nd2 Bd7 11. Nf1 a6 12. a4 Qc8 13. a5 Bd8 14. e4 h5 15. Bd2 Ng4 {0-1 (53) Agrifoglio,F (1998)-Salmoiraghi,A (2122) Milan 2008}) 10. Ng5 {[%emt 0:00:21][%cal Og5e6]} Bd7 {[%emt 0:01:16] Against Ne6} ({Better is} 10... Nf8) 11. Ne6 $1 $16 {[%emt 0:02:09] White is more active.} Qc8 {[%emt 0:03:12]} (11... fxe6 $16 12. Qxg6+ Kf8) 12. Nxg7+ $18 {[%emt 0:01:16]} Kf8 {[%emt 0:02:27] [#]} 13. Ne6+ {[%emt 0:00:07][%mdl 512]} Bxe6 {[%emt 0:00:14]} (13... Kg8 14. Bg5) 14. dxe6 {[%emt 0:00:08]} Qxe6 {[%emt 0:00:10]} 15. Bxb7 {[%emt 0:03:08]} Rb8 {[%emt 0:00:02]} 16. Bd5 $36 {[%emt 0:00:26][%mdl 2048] White is on the roll.} Qg4 {[%emt 0:00:29]} 17. b3 {[%emt 0:04:29]} Kg7 {[%emt 0:04:21]} (17... Nxd5 $142 18. Nxd5 Bd8) 18. Bg2 {[%emt 0:00:20] [#] Strongly threatening Bh3.} Qd7 {[%emt 0:00:52]} 19. Bb2 {[%emt 0:00:41]} Rhe8 {[%emt 0:01:58]} 20. Nd5 {[%emt 0:02:38]} Nxd5 {[%emt 0:01:41]} 21. Bxd5 {[%emt 0:00:16]} ({Don't take} 21. cxd5 a5 22. O-O a4 23. bxa4 Ra8 $18) 21... f5 {[%emt 0:00:44]} 22. e3 {[%emt 0:04:28][%cal Be2e3,Be3e4][%mdl 32]} Bf6 {[%emt 0:00:55]} 23. Bf3 {[%emt 0:01:33][%cal Bd5f3,Bf3h5,Bh5g6][%mdl 32] A strong pair of Bishops.} Rh8 {[%emt 0:04:07]} 24. e4 {[%emt 0:02:54]} f4 {[%emt 0:01:20]} 25. Qe2 {[%emt 0:00:26] Black must now prevent 0-0-0.} fxg3 {[%emt 0:09:52]} (25... Ne7 $142 26. gxf4 Nc6 27. Bxh5 Nd4) 26. fxg3 {[%emt 0:00:08] White is clearly winning.} Qc6 {[%emt 0:03:29]} 27. O-O-O {[%emt 0:07:31]} a5 {[%emt 0:03:13]} 28. Bxh5 {[%emt 0:00:31]} a4 {[%emt 0:00:02]} 29. Bxg6 {[%emt 0:00:30] Black did not feel at home in the position after the opening.  Weighted Error Value: White=0.14 (very precise) /Black=0.41} 1-0

[Event "ESCC-50 2022"]
[Site "Lublin"]
[Date "2022.07.05"]
[Round "1.7"]
[White "Chwalewski, Marek"]
[Black "Klimaszewski, Dariusz"]
[Result "0-1"]
[ECO "A48"]
[WhiteElo "1774"]
[BlackElo "2152"]
[Annotator "TA"]
[PlyCount "86"]
[EventDate "2022.07.05"]
[EventType "swiss"]
[EventCountry "POL"]
[SourceTitle "playchess.com"]
[Source "ChessBase"]
[SourceQuality "1"]
[TimeControl "40/5400+30:1800+30"]

{[%evp 9,86,-6,-13,-9,-14,-28,-29,-43,-31,-36,-25,-48,-45,-48,-39,-78,-67,-76,-51,-52,0,0,0,0,0,0,0,-28,0,-11,123,0,0,0,27,-265,-275,-285,-289,-375,-294,-308,-295,-303,-264,-278,-262,-350,-347,-334,-241,-547,-527,-707,-692,-666,-650,-732,-727,-697,-708,-672,-639,-912,-912,-1153,-1134,-974,-763,-792,-781,-1028,-997,-1560,-1550,-1386,-1047,-1556,-1553]} 1. Nf3 {[%emt 0:05:46]} Nf6 {[%emt 0:00:28]} 2. d4 {[%emt 0:00:24]} g6 {[%emt 0:00:27]} 3. Bg5 {[%emt 0:01:36]} Bg7 {[%emt 0:00:27]} 4. Bxf6 {[%emt 0:00:35]} exf6 {[%emt 0:01:28]} 5. h4 {[%emt 0:03:36]} h5 {[%emt 0:00:26]} 6. e3 {[%emt 0:01:06] A45: Trompowsky Attack.} d6 {[%emt 0:01:59][%cal Bd7d6,Bd6d5][%mdl 32] [#]} 7. Bc4 $146 {[%emt 0:01:30]} ({Predecessor:} 7. Nc3 O-O 8. Bc4 Bg4 9. Qd3 c6 10. Bb3 d5 11. e4 dxe4 12. Nxe4 Bxf3 13. gxf3 {0-1 (38) Dowgird,F (2348)-Onischuk,V (2622) Chess.com INT 2021}) 7... O-O {[%emt 0:01:22]} 8. Qd3 {[%emt 0:01:49] Black has an edge.} d5 {[%emt 0:02:31]} 9. Bb3 {[%emt 0:00:38]} a5 {[%emt 0:04:00]} 10. a4 {[%emt 0:05:53]} c6 {[%emt 0:02:28]} 11. Nc3 {[%emt 0:05:48][%cal Bb1c3,Bc3e2,Be2f4,Bf4h5][%mdl 32]} Na6 {[%emt 0:07:28]} 12. O-O-O {[%emt 0:01:54]} Nb4 {[%emt 0:01:37]} 13. Qd2 {[%emt 0:01:21]} Bg4 {[%emt 0:06:20]} 14. Rdg1 {[%emt 0:02:02]} Bxf3 {[%emt 0:00:33]} (14... Bd7 $15) 15. gxf3 $11 {[%emt 0:00:11]} f5 {[%emt 0:00:15]} 16. Ne2 {[%emt 0:05:06]} Qf6 {[%emt 0:03:58][%cal Oc6c5]} 17. c3 {[%emt 0:05:50]} Na6 {[%emt 0:00:20]} 18. Nf4 {[%emt 0:00:07]} Kh7 {[%emt 0:00:48]} 19. Bc2 {[%emt 0:02:09][%cal Of4h5] Nxh5! is the strong threat.} Nc7 {[%emt 0:02:04] [#]} (19... Bh6 $1 $11 {keeps the balance.}) 20. Rg5 {[%emt 0:00:45]} (20. Nxh5 $1 $16 {[%mdl 512]} gxh5 21. Rg5) 20... Bh6 $1 {[%emt 0:06:44]} 21. Nxh5 $1 {[%emt 0:02:23]} Qe7 {[%emt 0:00:12] [#]} 22. f4 {[%emt 0:25:51][%mdl 8192] This move loses the game for White.} Bxg5 $19 {[%emt 0:06:40]} 23. hxg5 {[%emt 0:00:41]} gxh5 {[%emt 0:07:10]} 24. Qd3 {[%emt 0:06:14]} Kg7 {[%emt 0:00:35][%cal Bh7g7,Bg7f8,Bf8e7][%mdl 32]} 25. Qxf5 {[%emt 0:00:24][%csl Gc2][%cal Rf5h7]} Rh8 {[%emt 0:00:11] Prevents Qh7+.} 26. Qh3 {[%emt 0:02:18]} Ne6 {[%emt 0:01:54]} 27. Rg1 {[%emt 0:02:35]} Rag8 {[%emt 0:01:59]} 28. Qg3 {[%emt 0:00:37]} h4 {[%emt 0:00:47]} 29. Qh3 {[%emt 0:02:50]} Kf8 {[%emt 0:02:49]} 30. g6 $2 {[%emt 0:01:13]} (30. Rg4 {is tougher.}) 30... fxg6 {[%emt 0:02:11] Black is clearly winning.} 31. Bxg6 {[%emt 0:00:10] White wants to mate with Qf5+.} Qf6 {[%emt 0:00:41]} 32. f5 {[%emt 0:00:22] [#]} Ke7 $1 {[%emt 0:01:55] And now ...Nf8 would win.} 33. Qh2 {[%emt 0:00:31]} (33. Re1 Ng5) 33... Nf8 {[%emt 0:00:36]} 34. Qc7+ {[%emt 0:01:15]} Nd7 {[%emt 0:00:13]} 35. Qxa5 {[%emt 0:00:12]} b6 {[%emt 0:01:25]} 36. Qa6 {[%emt 0:01:27]} h3 {[%emt 0:00:42][%cal Bh4h3,Bh3h2][%mdl 32] Strongly threatening ...h2.} 37. Qe2 {[%emt 0:02:04]} h2 {[%emt 0:00:16]} 38. Rh1 {[%emt 0:00:04]} Rh4 {[%emt 0:01:20] White must now prevent ...Nf8.} 39. f3 {[%emt 0:00:30]} Rgh8 {[%emt 0:00:20]} 40. e4 {[%emt 0:00:00]} dxe4 {[%emt 0:00:00] Threatens to win with ...Qg5+.} 41. fxe4 {[%emt 0:00:59]} Qg5+ {[%emt 0:01:00]} 42. Kc2 {[%emt 0:00:17]} Qg4 {[%emt 0:01:07]} 43. Qd1 {[%emt 0:01:39]} Qxd1+ {[%emt 0:01:46] Weighted Error Value: White=0.68/Black=0.19 (very precise)} 0-1

[Event "ESCC-50 2022"]
[Site "Lublin"]
[Date "2022.07.05"]
[Round "1.8"]
[White "Kirszenberg, Marc"]
[Black "Warnk, Torsten"]
[Result "1-0"]
[ECO "D35"]
[WhiteElo "2056"]
[BlackElo "1763"]
[Annotator "TA"]
[PlyCount "61"]
[EventDate "2022.07.05"]
[EventType "swiss"]
[EventCountry "POL"]
[SourceTitle "playchess.com"]
[Source "ChessBase"]
[SourceQuality "1"]
[TimeControl "40/5400+30:1800+30"]

{[%evp 17,61,52,64,57,74,48,81,72,66,74,65,56,79,49,47,43,81,68,98,93,108,55,66,58,110,73,59,67,67,75,107,93,111,92,292,190,190,192,321,328,1686,1664,1593,1572,29992,29993]} 1. d4 {[%emt 0:00:04]} d5 {[%emt 0:00:09]} 2. c4 {[%emt 0:00:04]} e6 {[%emt 0:00:39]} 3. Nc3 {[%emt 0:00:04]} Nf6 {[%emt 0:00:41]} 4. cxd5 {[%emt 0:00:05]} Nxd5 {[%emt 0:02:39]} 5. e4 {[%emt 0:00:07]} Nxc3 {[%emt 0:01:22]} 6. bxc3 {[%emt 0:00:05]} Be7 {[%emt 0:02:30]} 7. Nf3 {[%emt 0:00:16]} b6 {[%emt 0:01:53]} 8. Bd3 {[%emt 0:02:47]} Bb7 {[%emt 0:01:40]} 9. O-O {[%emt 0:00:13]} O-O {[%emt 0:00:31]} 10. Bf4 {[%emt 0:02:12] D35: Queen's Gambit Declined: Exchange Variation.} Nd7 {[%emt 0:06:23]} 11. Re1 {[%emt 0:10:24]} c5 {[%emt 0:03:14] [#]} 12. d5 $146 {[%emt 0:01:03] White is better.} ({Predecessor:} 12. a4 Nf6 13. Qb3 Qc8 14. h3 Rd8 15. a5 bxa5 16. Rxa5 cxd4 17. cxd4 Qd7 18. Bb5 {1-0 (34) Radosevic,N (1693)-Vuckovic,I (1205) Podgorica 2020}) 12... exd5 {[%emt 0:07:56]} 13. exd5 {[%emt 0:00:06]} Bf6 {[%emt 0:00:22]} 14. Rc1 {[%emt 0:01:03] 0x0.0005ea73bbbddp-1022s more active pieces. The black rooks are badly placed.} Re8 {[%emt 0:01:38]} 15. c4 {[%emt 0:02:56]} Rxe1+ {[%emt 0:06:26]} 16. Qxe1 {[%emt 0:00:20]} Nf8 {[%emt 0:03:36]} 17. Qe2 {[%emt 0:26:13]} Ng6 {[%emt 0:07:54]} 18. Bg3 $36 {[%emt 0:00:44][%mdl 2048] White is in control.} Qd7 {[%emt 0:03:43]} 19. h4 {[%emt 0:06:50]} (19. Qc2 $16) 19... Re8 $14 {[%emt 0:08:29]} 20. Qc2 {[%emt 0:00:39]} Nf8 {[%emt 0:13:57]} (20... Bc8 $14) 21. Bf5 {[%emt 0:02:27]} Qd8 {[%emt 0:01:00]} 22. Qa4 {[%emt 0:00:52]} Re7 {[%emt 0:02:47]} 23. Rd1 {[%emt 0:13:20]} a6 {[%emt 0:04:08]} 24. Qb3 {[%emt 0:05:33]} g6 {[%emt 0:03:10]} 25. Bh3 {[%emt 0:03:05]} Nd7 $2 {[%emt 0:03:11] [#] A mistake that costs the game.} (25... Re2 $16) 26. Rb1 {[%emt 0:02:49]} b5 {[%emt 0:05:09]} 27. cxb5 {[%emt 0:03:11][%cal Bc4b5,Bb5a6][%mdl 32]} Ne5 {[%emt 0:02:54]} (27... a5 {is a better defense.} 28. Bd6 Re4) 28. bxa6 {[%emt 0:07:36]} Nxf3+ $2 {[%emt 0:00:10]} (28... Bxd5 29. Qb8 Nxf3+ 30. gxf3 Qxb8 31. Rxb8+ Kg7) 29. Qxf3 $18 {[%emt 0:00:13]} Bxd5 {[%emt 0:01:03]} 30. Qxf6 {[%emt 0:04:00] Threatening mate with Be5.} Bxa2 {[%emt 0:03:08] [#]} 31. Be5 $1 {[%emt 0:01:11] Weighted Error Value: White=0.15 (very precise) /Black=0.63} 1-0

[Event "ESCC-50 2022"]
[Site "Lublin"]
[Date "2022.07.05"]
[Round "1.9"]
[White "Krzyzanowska-Zadlo, Lidia"]
[Black "Garabetyan, Arno"]
[Result "1-0"]
[ECO "B21"]
[WhiteElo "1732"]
[BlackElo "2056"]
[Annotator "TA"]
[PlyCount "81"]
[EventDate "2022.07.05"]
[EventType "swiss"]
[EventCountry "POL"]
[SourceTitle "playchess.com"]
[Source "ChessBase"]
[SourceQuality "1"]
[TimeControl "40/5400+30:1800+30"]

{[%evp 18,81,0,0,0,16,22,-13,-27,-32,-16,-27,-31,-35,-28,-29,0,-10,0,0,13,-63,-45,-41,-38,-31,0,0,109,-51,-39,-20,-35,-39,0,0,45,31,44,41,674,613,687,767,769,713,831,839,1358,1344,1033,502,29993,29991,29991,460,458,418,1029,964,29995,29996,29996,29995,29997,29998]} 1. e4 {[%emt 0:00:02]} c5 {[%emt 0:00:09]} 2. d4 {[%emt 0:01:05]} cxd4 {[%emt 0:00:06]} 3. c3 {[%emt 0:00:09]} Nf6 {[%emt 0:00:04]} 4. e5 {[%emt 0:01:32]} Nd5 {[%emt 0:00:05]} 5. Nf3 {[%emt 0:00:14]} e6 {[%emt 0:00:09]} 6. cxd4 {[%emt 0:04:29]} d6 {[%emt 0:00:06]} 7. Bc4 {[%emt 0:11:59]} Be7 {[%emt 0:00:26]} 8. O-O {[%emt 0:00:55]} O-O {[%emt 0:00:14]} 9. Nc3 {[%emt 0:09:29]} Nxc3 {[%emt 0:00:19]} 10. bxc3 {[%emt 0:00:10]} Qc7 {[%emt 0:00:20] B22: Sicilian: 2 c3.} 11. Qd3 {[%emt 0:01:13]} Nd7 {[%emt 0:00:38][%cal Rd6e5]} 12. exd6 {[%emt 0:05:25]} (12. Bg5 {seems wilder.} Re8 13. Bxe7 Rxe7 14. Ng5) 12... Bxd6 {[%emt 0:00:46] The position is equal.} 13. Bb3 {[%emt 0:00:28]} b6 $1 {[%emt 0:05:01]} 14. Bb2 {[%emt 0:05:21]} Bb7 {[%emt 0:00:16]} 15. h3 {[%emt 0:00:12]} Rfd8 {[%emt 0:00:37][%cal Ob6b5] [#]} 16. Ng5 $146 {[%emt 0:07:00]} ({Predecessor:} 16. Rfe1 Nc5 17. Qe2 Nxb3 18. axb3 b5 19. Ne5 a6 20. Rac1 Qe7 21. Qg4 Rac8 22. c4 Bxe5 23. Rxe5 bxc4 {0-1 (38) Meshcheriakova,E (2220)-Zozulia,A (2305) Budva 2002}) 16... Nf6 {[%emt 0:04:30]} 17. Rfe1 {[%emt 0:10:52][%cal Oe1e6]} Bh2+ {[%emt 0:02:28]} 18. Kh1 {[%emt 0:00:40][%cal Oe1e6] aiming for Rxe6!} Bf4 {[%emt 0:00:06] [#]} 19. Nf3 {[%emt 0:06:33]} (19. Nxf7 $1 $11 Kxf7 20. Bxe6+ (20. Qf5 $2 Kg8 $17) 20... Kf8 21. c4) 19... Rac8 {[%emt 0:01:49][%cal Oe6e5]} 20. c4 {[%emt 0:02:41]} Ba6 {[%emt 0:03:06][%cal Ra6c4]} 21. g3 {[%emt 0:02:45]} Bh6 {[%emt 0:04:56][%cal Ra6c4]} (21... Bd6 $5 {[%cal Ra6c4]} 22. Rac1 e5 $15) 22. Ne5 {[%emt 0:00:42]} Nd7 {[%emt 0:00:38] [#]} (22... g6 $11 {keeps the balance.}) 23. Ng4 $2 {[%emt 0:15:38]} (23. Nxf7 $1 $16 {[%mdl 512]} Kxf7 24. Rxe6 Bxc4 25. Rxh6 $1 {[%mdl 512]} Bxb3 26. Qxb3+ Qc4 27. Rd6 (27. Rxh7 Nf6 $15)) 23... Bg5 $15 {[%emt 0:34:36][%cal Ra6c4]} (23... Bxc4 24. Nxh6+ gxh6 25. Qe3 $11) 24. h4 {[%emt 0:02:15]} Be7 {[%emt 0:01:42][%cal Ra6c4]} 25. Rac1 {[%emt 0:03:43]} Nc5 {[%emt 0:01:03]} 26. Qe3 {[%emt 0:00:26] Active counter play!} (26. Qf3 $2 Rxd4 $3 {[%mdl 512]} 27. Kh2 (27. Bxd4 $2 Bb7 $19) 27... Bb7 $19) 26... Nxb3 {[%emt 0:00:10]} 27. axb3 {[%emt 0:00:06][%cal Od4d5] d5! is the strong threat.} Bb7+ {[%emt 0:02:01]} ({Much less strong is} 27... Bb4 28. d5 Bf8 29. Qg5 $16 (29. dxe6 Bb7+ 30. Kh2 fxe6 $16)) 28. d5 {[%emt 0:01:21]} Bc5 $2 {[%emt 0:02:14][%mdl 8192] Loses the game.} (28... exd5 $14 29. Qxe7 d4+ 30. Kg1 (30. Kh2 Qc6 $11) 30... Qc6 31. Qxf7+ Kxf7 32. Ne5+ Kg8 33. Nxc6 Bxc6) 29. Qg5 {[%emt 0:00:47][%csl Gb2][%cal Rg5g7]} f5 {[%emt 0:00:23]} 30. Nf6+ {[%emt 0:01:39][%cal Bg4f6,Bf6h5,Bh5g7,Bg7f5][%mdl 32]} Kh8 {[%emt 0:02:46]} 31. Nh5 {[%emt 0:02:20][%cal Rb2g7]} Rd7 {[%emt 0:04:01]} 32. Rxe6 {[%emt 0:00:42]} Bf8 {[%emt 0:05:00]} 33. Rce1 {[%emt 0:00:53][%cal Oh5g7] Threatening mate with Nxg7!} Qd8 {[%emt 0:06:05] [#]} 34. Qxf5 {[%emt 0:00:58]} (34. Nf6 $142 $1 {[%mdl 512]} Be7 {[#]} 35. Qxf5 $1 Bxf6 36. Re8+ Qxe8 37. Rxe8+ Rxe8 38. Qxd7) 34... Rd6 {[%emt 0:03:08]} (34... Rxd5 $18 35. cxd5 Qxd5+ 36. Qxd5 Bxd5+ 37. R6e4 Kg8) 35. Nxg7 {[%emt 0:01:03]} Rxd5 {[%emt 0:01:48]} 36. Qf3 {[%emt 0:02:04]} Rd7 $18 {[%emt 0:02:21]} 37. Nf5+ {[%emt 0:00:24]} Kg8 {[%emt 0:02:47] [#]} (37... Bg7 $142 38. Qxb7 Rxb7 39. Nxg7 Rxg7) 38. R1e4 $1 {[%emt 0:00:33]} Rd2 {[%emt 0:05:48]} (38... Bxe4 39. Rxe4) 39. Qg4+ {[%emt 0:00:40] White mates.} Kf7 {[%emt 0:00:01]} 40. Qh5+ {[%emt 0:00:00]} Kg8 {[%emt 0:00:00] [#]} 41. Rg6+ $3 {[%emt 0:06:52][%mdl 512] Weighted Error Value: White=0.64/Black=0.74} 1-0

[Event "ESCC-50 2022"]
[Site "Lublin"]
[Date "2022.07.05"]
[Round "1.10"]
[White "Sielicki, Tomasz"]
[Black "Babijczuk, Wojciech"]
[Result "1-0"]
[ECO "A80"]
[WhiteElo "1967"]
[BlackElo "1436"]
[Annotator "TA"]
[PlyCount "59"]
[EventDate "2022.07.05"]
[EventType "swiss"]
[EventCountry "POL"]
[SourceTitle "playchess.com"]
[Source "ChessBase"]
[SourceQuality "1"]
[TimeControl "40/5400+30:1800+30"]

{[%evp 9,58,48,44,25,26,16,56,52,67,60,79,0,8,0,122,120,123,122,212,207,206,50,19,30,33,25,54,56,40,48,33,63,90,69,126,0,116,121,131,59,309,277,518,537,532,510,512,506,787,772,29999]} 1. d4 {[%emt 0:00:56]} f5 {[%emt 0:00:20]} 2. Bg5 {[%emt 0:01:33]} h6 {[%emt 0:00:18]} 3. Bh4 {[%emt 0:00:21]} Nf6 {[%emt 0:00:56]} 4. Bxf6 {[%emt 0:00:50]} exf6 {[%emt 0:00:10]} 5. e4 {[%emt 0:04:05]} Qe7 {[%emt 0:05:57]} 6. Qh5+ {[%emt 0:03:18] A80: Dutch Defence: Unusual White second moves.} (6. Nc3 $5 {[%cal Rd1h5]}) 6... Kd8 {[%emt 0:00:14]} 7. Nc3 {[%emt 0:02:15] Active counter play!} (7. Qxf5 Qb4+ 8. Nd2 Qxb2 $11) 7... d5 {[%emt 0:00:13]} 8. O-O-O {[%emt 0:07:18] White is slightly better.} dxe4 {[%emt 0:01:45]} 9. f3 {[%emt 0:01:20] [#]} e3 $146 {[%emt 0:07:25]} ({Predecessor:} 9... Be6 10. d5 Bd7 11. Bc4 Qe8 12. Qxe8+ Bxe8 13. fxe4 fxe4 14. Nxe4 Bg6 15. Ng3 Bd6 {1-0 (39) Padeiro,J (2353)-Fernandes,A (2160) Caldas da Rainha 2014}) 10. Nd5 {[%emt 0:09:52]} ({White should try} 10. Bc4 $16) 10... Qe6 $11 {[%emt 0:14:45]} 11. Bc4 {[%emt 0:03:48]} Bd7 {[%emt 0:09:07]} (11... Bd6 $1 $11 12. Ne2 (12. Nb6 $2 e2 $19) 12... Qe8) 12. Ne2 $16 {[%emt 0:05:17][%mdl 1024] Threatens to win with Nef4. White has strong compensation.} b5 {[%emt 0:12:07]} 13. Bb3 {[%emt 0:00:43][%cal Od5c7]} Be8 {[%emt 0:12:49]} (13... Qe8 $16 14. Qxe8+ Bxe8) 14. Qh3 $1 $18 {[%emt 0:02:12][%cal Od5c7] Hoping for Nxc7!} Qd7 {[%emt 0:05:33]} (14... c6 $2 15. Nb6 $1 {[%mdl 512]} Qd6 16. Nxa8 $18) 15. Rhe1 $2 {[%emt 0:08:25]} (15. Nxe3 g6) (15. Ndf4 $18) 15... a5 $1 $14 {[%emt 0:00:28]} 16. a3 {[%emt 0:01:34]} ({Much worse is} 16. Nxe3 a4 17. Bd5 c6 $17) 16... a4 {[%emt 0:00:53]} 17. Ba2 {[%emt 0:01:11]} b4 {[%emt 0:00:11]} 18. Nxb4 {[%emt 0:13:31]} Bxb4 {[%emt 0:00:34]} 19. axb4 {[%emt 0:00:04]} a3 {[%emt 0:00:55] White must now prevent ...axb2+.} 20. b3 {[%emt 0:04:57]} g5 {[%emt 0:04:16]} 21. f4 {[%emt 0:00:27] Strongly threatening Qf3.} Na6 {[%emt 0:01:05] [#]} (21... Nc6 $1 $14) 22. c3 {[%emt 0:04:12]} ({Only move:} 22. Qf3 $1 $16 {[%cal Rf3a8]} Rb8 23. c3) 22... Bf7 {[%emt 0:04:49]} (22... Nxb4 $1 $11 23. cxb4 Qc6+ 24. Kb1 Qe4+ 25. Kc1 Qc6+ 26. Kb1 Qe4+ 27. Ka1 Qc2) 23. Qxe3 {[%emt 0:03:28]} Re8 {[%emt 0:01:00] [#]} 24. Qd3 {[%emt 0:00:40]} ({Better is} 24. Qd2 $1 $16) 24... Qc6 $2 {[%emt 0:00:46] This move loses the game for Black.} (24... Qd5 $14) 25. d5 $18 {[%emt 0:05:42][%cal Bd4d5,Bd5c6][%mdl 32]} ({Don't go for} 25. Qxf5 $2 Nxb4 26. d5 Nxa2+ $19) ({But not} 25. b5 Qxg2 26. bxa6 Bh5) 25... Nxb4 {[%emt 0:05:16]} (25... Qd7 {was worth a try.} 26. fxg5 hxg5) 26. dxc6+ {[%emt 0:00:21]} Nxd3+ {[%emt 0:00:04]} 27. Rxd3+ {[%emt 0:00:09]} Kc8 {[%emt 0:00:22]} 28. Rdd1 {[%emt 0:01:05]} Bh5 {[%emt 0:00:16]} (28... Kb8 $142 29. Nd4 Ka7) 29. Nd4 {[%emt 0:00:56]} Bxd1 {[%emt 0:04:02]} 30. Rxe8# {[%emt 0:01:42] Weighted Error Value: White=0.26 (precise) /Black=0.86} 1-0